bitfinex-derivatives/quotes_BTCF0:USTF0_20250710
["timestamp","ask_amount","ask_price","bid_price","bid_amount"]
[1752115002151,1.87751607,111330.0,111320.0,0.38572466]
[1752115002543,1.79675286,111330.0,111320.0,0.38572466]
[1752115002745,1.53314114,111330.0,111320.0,0.38572466]
[1752115002957,1.53326338,111330.0,111320.0,0.58269436]
[1752115003443,1.31926606,111330.0,111320.0,0.61469436]
[1752115003644,1.58300002,111330.0,111320.0,0.61669436]
[1752115003850,1.58300002,111330.0,111320.0,0.60265645]
[1752115004151,1.58300002,111330.0,111320.0,0.66265645]
[1752115004843,1.55090002,111330.0,111320.0,0.66265645]
[1752115005044,1.55090002,111330.0,111320.0,0.63265645]
[1752115005546,1.55090002,111330.0,111320.0,0.63065645]
[1752115005854,1.55090002,111330.0,111320.0,0.44905675]
[1752115006055,2.23555654,111330.0,111320.0,0.37028675]
[1752115006257,2.29665654,111330.0,111320.0,0.15028675]
[1752115006445,2.29965654,111330.0,111320.0,0.15028675]
[1752115007245,2.26077072,111330.0,111320.0,0.15028675]
[1752115007458,2.30234871,111330.0,111320.0,0.15028675]
[1752115008549,2.27234871,111330.0,111320.0,0.12028675]
[1752115009460,2.28234871,111330.0,111320.0,0.12028675]
[1752115010147,1.92234871,111330.0,111320.0,0.12028675]
[1752115010347,2.28234871,111330.0,111320.0,0.12028675]
[1752115011149,2.30234871,111330.0,111320.0,0.14028675]
[1752115011350,1.39488079,111330.0,111320.0,0.14028675]
[1752115011549,2.26234871,111330.0,111320.0,0.14028675]
[1752115013154,2.15476951,111330.0,111320.0,0.14028675]
[1752115013746,2.26234871,111330.0,111320.0,0.14028675]
[1752115013952,0.1795997,111320.0,111310.0,0.0337967]
[1752115014158,1.35734007,111320.0,111310.0,0.2617967]
[1752115014360,1.37142007,111320.0,111310.0,0.2617967]
[1752115014752,1.34142007,111320.0,111310.0,0.3517967]
[1752115015265,0.99707769,111320.0,111310.0,0.3517967]
[1752115015559,1.26081165,111320.0,111310.0,0.1517967]
[1752115015760,1.34141274,111320.0,111310.0,0.0017967]
[1752115016560,0.1796158,111310.0,111300.0,0.0318]
[1752115016752,2.2900061,111310.0,111300.0,0.3518]
[1752115017262,2.2745861,111310.0,111300.0,0.3518]
[1752115017560,2.19398894,111310.0,111300.0,0.3618]
[1752115017749,2.27457394,111310.0,111300.0,0.3618]
[1752115018057,2.27457394,111310.0,111300.0,0.3638]
[1752115018254,2.27455345,111310.0,111300.0,0.1638]
[1752115018559,2.30156814,111310.0,111300.0,0.1638]
[1752115018752,2.31039825,111310.0,111300.0,0.1638]
[1752115019155,2.31039825,111310.0,111300.0,0.1658]
[1752115019955,2.31039825,111310.0,111300.0,0.0358]
[1752115020156,2.04666429,111310.0,111300.0,0.1758]
[1752115020358,2.29631825,111310.0,111300.0,0.1758]
[1752115020963,2.29631825,111310.0,111300.0,0.0358]
[1752115021263,2.29631825,111310.0,111300.0,0.1658]
[1752115023566,2.31039825,111310.0,111300.0,0.1658]
[1752115025070,2.31039825,111310.0,111300.0,0.0358]
[1752115026265,2.20281905,111310.0,111300.0,0.0358]
[1752115026566,2.3101487,111310.0,111300.0,0.0358]
[1752115026766,2.20281905,111310.0,111300.0,0.0358]
[1752115027158,2.33726718,111310.0,111300.0,0.0358]
[1752115027666,2.20281905,111310.0,111300.0,0.0358]
[1752115027968,2.46655301,111310.0,111300.0,0.0358]
[1752115028165,2.60100114,111310.0,111300.0,0.0358]
[1752115028468,0.179632,111300.0,111290.0,0.211448]
[1752115028767,1.0400033,111300.0,111290.0,0.40689]
[1752115029775,1.0400033,111300.0,111290.0,0.40989]
[1752115029969,1.0400033,111300.0,111290.0,0.41989]
[1752115030472,1.0400033,111300.0,111290.0,0.5995381]
[1752115030770,1.0400033,111300.0,111290.0,0.6257481]
[1752115030973,1.0400033,111300.0,111290.0,0.4461]
[1752115031263,0.6792033,111300.0,111290.0,0.4461]
[1752115031466,1.0400033,111300.0,111290.0,0.4762]
[1752115031661,1.0400033,111300.0,111290.0,0.6558481]
[1752115032672,1.0400033,111300.0,111290.0,0.4762]
[1752115033668,1.0400033,111300.0,111290.0,0.6558481]
[1752115033874,1.30373726,111300.0,111290.0,0.45299]
[1752115034067,1.33393726,111300.0,111290.0,0.45299]
[1752115034970,1.33393726,111300.0,111290.0,0.42299]
[1752115035171,1.33393726,111300.0,111290.0,0.42005381]
[1752115035368,1.33693726,111300.0,111290.0,0.42005381]
[1752115036073,1.22957227,111300.0,111290.0,0.41005381]
[1752115036276,1.24365227,111300.0,111290.0,0.41005381]
[1752115036873,1.4082004,111300.0,111290.0,0.33306381]
[1752115038362,1.4082004,111300.0,111290.0,0.33006381]
[1752115038570,1.4082004,111300.0,111290.0,0.34006381]
[1752115039068,1.4092004,111300.0,111290.0,0.34006381]
[1752115040068,1.4092004,111300.0,111290.0,0.27006381]
[1752115041275,1.7392004,111300.0,111290.0,0.27006381]
[1752115041472,1.4092004,111300.0,111290.0,0.27006381]
[1752115042278,1.3795904,111300.0,111290.0,0.27006381]
[1752115043280,1.3795904,111300.0,111290.0,0.18916461]
[1752115043476,0.1796481,111290.0,111280.0,0.2655166]
[1752115043676,2.22244353,111290.0,111280.0,0.6606066]
[1752115043881,2.20691353,111290.0,111280.0,0.6606066]
[1752115044379,2.09928005,111290.0,111280.0,0.6606066]
[1752115044782,2.10028005,111290.0,111280.0,0.6606066]
[1752115044975,2.10028005,111290.0,111280.0,0.6406066]
[1752115045881,2.20791353,111290.0,111280.0,0.6638166]
[1752115046485,1.94417957,111290.0,111280.0,0.6638166]
[1752115046781,0.69065957,111290.0,111280.0,0.6638166]
[1752115046982,1.59664353,111290.0,111280.0,0.6638166]
[1752115047178,1.31737957,111290.0,111280.0,0.6638166]
[1752115047380,1.58111353,111290.0,111280.0,0.6638166]
[1752115047583,1.31737957,111290.0,111280.0,0.6638166]
[1752115047882,1.59836045,111290.0,111280.0,0.64476139]
[1752115050075,1.59836045,111290.0,111280.0,0.59476139]
[1752115050985,1.33462649,111290.0,111280.0,0.59476139]
[1752115051284,1.59836045,111290.0,111280.0,0.59476139]
[1752115051979,1.23756045,111290.0,111280.0,0.59476139]
[1752115052488,1.12992697,111290.0,111280.0,0.59476139]
[1752115053187,0.86619301,111290.0,111280.0,0.59476139]
[1752115053380,1.14575697,111290.0,111280.0,0.59476139]
[1752115053581,1.12992697,111290.0,111280.0,0.59476139]
[1752115053881,1.12992697,111290.0,111280.0,0.28476139]
[1752115054086,1.12992697,111290.0,111280.0,0.61476139]
[1752115054784,1.13007607,111290.0,111280.0,0.61476139]
[1752115054989,1.13007607,111290.0,111280.0,0.66476139]
[1752115056288,1.21087746,111290.0,111280.0,0.66476139]
[1752115057184,0.58415746,111290.0,111280.0,0.66476139]
[1752115057387,0.56691054,111290.0,111280.0,1.28944445]
[1752115057591,1.19343054,111290.0,111280.0,1.28944445]
[1752115057981,1.19343054,111290.0,111280.0,0.92864445]
[1752115058181,1.22026263,111290.0,111280.0,0.92864445]
[1752115059991,1.22026263,111290.0,111280.0,1.21944445]
[1752115060291,1.22022263,111290.0,111280.0,1.21944445]
[1752115062093,1.22022263,111290.0,111280.0,0.85864445]
[1752115062692,1.22022263,111290.0,111280.0,0.55646139]
[1752115062894,1.22022263,111290.0,111280.0,0.59511139]
[1752115063594,1.11258915,111290.0,111280.0,0.66511139]
[1752115064593,1.14398915,111290.0,111280.0,0.66511139]
[1752115064992,1.14398915,111290.0,111280.0,0.60511139]
[1752115066093,1.42477364,111290.0,111280.0,0.36044719]
[1752115066398,2.28350712,111290.0,111280.0,0.32179719]
[1752115066698,2.29758712,111290.0,111280.0,0.32179719]
[1752115068390,2.18995364,111290.0,111280.0,0.32179719]
[1752115068896,1.9261386,111290.0,111280.0,0.32179719]
[1752115069088,1.9261386,111290.0,111280.0,0.36179719]
[1752115069592,2.03377208,111290.0,111280.0,0.36179719]
[1752115069999,1.99377208,111290.0,111280.0,0.35179719]
[1752115070897,1.99377208,111290.0,111280.0,0.53146139]
[1752115071089,1.97969208,111290.0,111280.0,0.53146139]
[1752115071289,1.97969208,111290.0,111280.0,0.54738139]
[1752115073292,1.29889208,111290.0,111280.0,0.54738139]
[1752115074598,1.1912586,111290.0,111280.0,0.54738139]
[1752115074893,0.5647786,111290.0,111280.0,0.54738139]
[1752115075093,0.89676752,111290.0,111280.0,0.60011139]
[1752115075293,1.24149732,111290.0,111280.0,0.66501139]
[1752115077103,1.24149732,111290.0,111280.0,0.65501139]
[1752115078499,1.24149732,111290.0,111280.0,0.66501139]
[1752115079003,1.24149732,111290.0,111280.0,0.66523139]
[1752115080004,1.27259732,111290.0,111280.0,0.65523139]
[1752115081196,1.1918186,111290.0,111280.0,0.65523139]
[1752115082893,1.29945208,111290.0,111280.0,0.65523139]
[1752115083600,1.29945208,111290.0,111280.0,0.64523139]
[1752115083803,1.27258392,111290.0,111280.0,0.64523139]
[1752115085007,1.27258392,111290.0,111280.0,0.60523139]
[1752115085306,1.00863284,111290.0,111280.0,0.60523139]
[1752115085509,1.27258392,111290.0,111280.0,0.60523139]
[1752115088001,1.63338392,111290.0,111280.0,0.60523139]
[1752115088207,1.27258392,111290.0,111280.0,0.60523139]
[1752115088502,1.27258392,111290.0,111280.0,0.63523139]
[1752115088810,1.27253511,111290.0,111280.0,0.63523139]
[1752115090008,1.27253511,111290.0,111280.0,0.62523139]
[1752115090398,1.29940327,111290.0,111280.0,0.62523139]
[1752115090805,1.035501,111290.0,111280.0,0.62523139]
[1752115091006,1.29940327,111290.0,111280.0,0.62523139]
[1752115091708,1.26830327,111290.0,111280.0,0.62523139]
[1752115093501,1.26830327,111290.0,111280.0,0.61523139]
[1752115093812,1.26830327,111290.0,111280.0,0.87913366]
[1752115094107,1.26794327,111290.0,111280.0,0.89313473]
[1752115094513,1.004041,111290.0,111280.0,0.62923246]
[1752115094709,1.26794327,111290.0,111280.0,0.89313473]
[1752115095008,1.26794327,111290.0,111280.0,0.84426473]
[1752115095204,1.26794327,111290.0,111280.0,0.61923246]
[1752115095401,1.26794327,111290.0,111280.0,0.88313473]
[1752115096011,1.26794327,111290.0,111280.0,0.61923246]
[1752115098418,1.20953262,111290.0,111280.0,0.88313473]
[1752115098617,1.20953262,111290.0,111280.0,0.92313473]
[1752115100015,1.20953262,111290.0,111280.0,0.89313473]
[1752115100606,1.23642327,111290.0,111280.0,0.89313473]
[1752115103018,1.26662327,111290.0,111280.0,0.89313473]
[1752115103718,1.26662327,111290.0,111280.0,0.88313473]
[1752115105617,1.12866979,111290.0,111280.0,1.24393473]
[1752115105920,1.20945089,111290.0,111280.0,1.24393473]
[1752115106111,0.31990862,111290.0,111280.0,1.5078404]
[1752115106316,1.20941089,111290.0,111280.0,0.98003586]
[1752115106620,1.20941089,111290.0,111280.0,1.5078404]
[1752115106924,1.20941089,111290.0,111280.0,1.24393813]
[1752115108617,1.20941089,111290.0,111280.0,1.27393813]
[1752115109323,1.20940308,111290.0,111280.0,1.27393813]
[1752115109523,1.23626327,111290.0,111280.0,1.27393813]
[1752115110116,1.23626327,111290.0,111280.0,1.25393813]
[1752115110322,1.23626327,111290.0,111280.0,0.99003586]
[1752115110520,1.23626327,111290.0,111280.0,1.25393813]
[1752115112223,0.972361,111290.0,111280.0,1.25393813]
[1752115112421,1.25236327,111290.0,111280.0,1.25393813]
[1752115112621,1.23626327,111290.0,111280.0,1.25393813]
[1752115113526,1.23626327,111290.0,111280.0,1.29393813]
[1752115113821,1.23626327,111290.0,111280.0,1.25506813]
[1752115114029,1.23626327,111290.0,111280.0,1.27834813]
[1752115114325,1.23626327,111290.0,111280.0,1.01444586]
[1752115114522,1.23626327,111290.0,111280.0,1.27834813]
[1752115114826,1.23626327,111290.0,111280.0,0.91754813]
[1752115115028,1.23626327,111290.0,111280.0,0.94409813]
[1752115116426,1.23680489,111290.0,111280.0,0.94409813]
[1752115117219,1.23680489,111290.0,111280.0,1.30489813]
[1752115117424,1.23680489,111290.0,111280.0,1.28834813]
[1752115117927,1.23680489,111290.0,111280.0,0.92754813]
[1752115118229,1.23680489,111290.0,111280.0,0.94409813]
[1752115118629,1.23680489,111290.0,111280.0,1.30489813]
[1752115118830,1.23680489,111290.0,111280.0,1.04099586]
[1752115119030,1.26950489,111290.0,111280.0,0.68019586]
[1752115119530,1.00560262,111290.0,111280.0,0.68019586]
[1752115119723,1.26950489,111290.0,111280.0,0.68019586]
[1752115120030,1.26950489,111290.0,111280.0,0.66019586]
[1752115120330,1.00560262,111290.0,111280.0,0.66019586]
[1752115120532,1.2693315,111290.0,111280.0,0.66019586]
[1752115121834,1.2693315,111290.0,111280.0,0.66023588]
[1752115122330,1.16169802,111290.0,111280.0,0.66023588]
[1752115122533,1.19239802,111290.0,111280.0,0.60485588]
[1752115123529,1.19239802,111290.0,111280.0,0.24485588]
[1752115123728,1.19239802,111290.0,111280.0,0.59485588]
[1752115125120,1.19239802,111290.0,111280.0,0.60485588]
[1752115126334,1.19222833,111290.0,111280.0,0.60485588]
[1752115126839,1.27297167,111290.0,111280.0,0.60485588]
[1752115127134,1.19222833,111290.0,111280.0,0.60485588]
[1752115128834,1.19222833,111290.0,111280.0,0.61485588]
[1752115129135,1.19222833,111290.0,111280.0,0.58205588]
[1752115129527,1.19222833,111290.0,111280.0,0.58205587]
[1752115131935,1.1504518,111290.0,111280.0,0.58205587]
[1752115132122,1.19222638,111290.0,111280.0,0.58205587]
[1752115133327,1.19222638,111290.0,111280.0,0.56801139]
[1752115133531,1.19222638,111290.0,111280.0,0.58205587]
[1752115133837,1.19222638,111290.0,111280.0,0.53205587]
[1752115134132,1.81612865,111290.0,111280.0,0.33584167]
[1752115134346,2.29864213,111290.0,111280.0,0.33584167]
[1752115134738,2.19100865,111290.0,111280.0,0.33584167]
[1752115134932,2.32545678,111290.0,111280.0,0.01584167]
[1752115135937,2.28545678,111290.0,111280.0,0.01584167]
[1752115137339,2.25857115,111290.0,111280.0,0.01584167]
[1752115139334,1.24742638,111290.0,111280.0,0.21205597]
[1752115139539,1.55218638,111290.0,111280.0,0.06151167]
[1752115139732,2.42067945,111290.0,111280.0,0.06151167]
[1752115139934,2.43475945,111290.0,111280.0,0.06151167]
[1752115140835,2.40475945,111290.0,111280.0,0.07151167]
[1752115141234,2.40475945,111290.0,111280.0,0.05584167]
[1752115142545,2.40475945,111290.0,111280.0,0.01584167]
[1752115143041,2.40475945,111290.0,111280.0,0.01584339]
[1752115143841,2.51232195,111290.0,111280.0,0.01584339]
[1752115144234,2.50232195,111290.0,111280.0,0.01584339]
[1752115144943,2.16232195,111290.0,111280.0,0.01584339]
[1752115145244,2.52232195,111290.0,111280.0,0.01584339]
[1752115146038,2.52232195,111290.0,111280.0,0.01584347]
[1752115147242,2.52332195,111290.0,111280.0,0.01584347]
[1752115148547,2.55020758,111290.0,111280.0,0.01584347]
[1752115148847,2.54020758,111290.0,111280.0,0.01584347]
[1752115150047,2.52020758,111290.0,111280.0,0.01584347]
[1752115151146,2.38575945,111290.0,111280.0,0.01584347]
[1752115151847,2.38575945,111290.0,111280.0,0.01584349]
[1752115152441,2.37167945,111290.0,111280.0,0.01584349]
[1752115152648,2.38575945,111290.0,111280.0,0.01584349]
[1752115153646,2.41575945,111290.0,111280.0,0.01584349]
[1752115154249,2.41575945,111290.0,111280.0,0.00179719]
[1752115154943,2.05575945,111290.0,111280.0,0.00179719]
[1752115155153,2.53324753,111290.0,111280.0,0.0158435]
[1752115156943,2.42575945,111290.0,111280.0,0.0158435]
[1752115158345,2.56020758,111290.0,111280.0,0.00179719]
[1752115158551,2.54326331,111290.0,111280.0,0.00179719]
[1752115159949,2.05575945,111290.0,111280.0,0.00179719]
[1752115160150,2.36575945,111290.0,111280.0,0.00179719]
[1752115162945,2.36575945,111290.0,111280.0,0.01584349]
[1752115163647,2.42575945,111290.0,111280.0,0.01584349]
[1752115164343,2.42575945,111290.0,111280.0,0.00179719]
[1752115164951,2.05575945,111290.0,111280.0,0.00179719]
[1752115165150,2.51020758,111290.0,111280.0,0.00179719]
[1752115165957,2.03695451,111290.0,111280.0,0.02030017]
[1752115166255,1.70103451,111290.0,111280.0,0.05140017]
[1752115166446,1.65625451,111290.0,111280.0,0.05140017]
[1752115166642,1.92015678,111290.0,111280.0,0.06429719]
[1752115167246,1.35965224,111290.0,111280.0,0.07996719]
[1752115167442,1.22520411,111290.0,111280.0,0.08996719]
[1752115167654,1.48910638,111290.0,111280.0,0.08996719]
[1752115168062,1.59665464,111290.0,111280.0,0.08996719]
[1752115168455,1.48910638,111290.0,111280.0,0.08996719]
[1752115169858,1.59664951,111290.0,111280.0,0.08996719]
[1752115170055,1.48910638,111290.0,111280.0,0.08996719]
[1752115170355,1.59664763,111290.0,111280.0,0.08996719]
[1752115170553,1.23584763,111290.0,111280.0,0.08996719]
[1752115170755,1.48910638,111290.0,111280.0,0.08996719]
[1752115170957,1.48910638,111290.0,111280.0,0.09092719]
[1752115170958,1.59664771,111290.0,111280.0,0.09092719]
[1752115171560,1.48910638,111290.0,111280.0,0.09092719]
[1752115171948,1.59664781,111290.0,111280.0,0.1049729]
[1752115172148,1.86055008,111290.0,111280.0,0.10497306]
[1752115174251,1.83975008,111290.0,111280.0,0.10497306]
[1752115174460,2.20055008,111290.0,111280.0,0.10497306]
[1752115174754,2.20055008,111290.0,111280.0,0.09497306]
[1752115174955,2.20055008,111290.0,111280.0,0.09497299]
[1752115175761,1.86055008,111290.0,111280.0,0.09497299]
[1752115175963,2.20055008,111290.0,111280.0,0.09497299]
[1752115179265,2.23275008,111290.0,111280.0,0.09497299]
[1752115179965,2.12520865,111290.0,111280.0,0.09497299]
[1752115180265,2.25965678,111290.0,111280.0,0.08092719]
[1752115180465,2.26965678,111290.0,111280.0,0.08092719]
[1752115183463,2.26965678,111290.0,111280.0,0.09497313]
[1752115183765,2.26965678,111290.0,111280.0,0.08092719]
[1752115183966,2.27965678,111290.0,111280.0,0.09497324]
[1752115184866,2.27965678,111290.0,111280.0,0.07834324]
[1752115185067,2.28965678,111290.0,111280.0,0.07834324]
[1752115185269,2.15520865,111290.0,111280.0,0.07834324]
[1752115185469,2.28965678,111290.0,111280.0,0.07834324]
[1752115186369,2.28965678,111290.0,111280.0,0.09497324]
[1752115186370,2.15520865,111290.0,111280.0,0.09497324]
[1752115188468,1.89298209,111290.0,111280.0,0.09497324]
[1752115189668,1.91218209,111290.0,111280.0,0.09497324]
[1752115189871,1.89298209,111290.0,111280.0,0.09497324]
[1752115190975,1.78542725,111290.0,111280.0,0.09497324]
[1752115191169,1.25762271,111290.0,111280.0,0.09497324]
[1752115191371,1.78542725,111290.0,111280.0,0.09497324]
[1752115194175,1.81782725,111290.0,111280.0,0.09497324]
[1752115195575,1.92540393,111290.0,111280.0,0.09497324]
[1752115196374,1.92540393,111290.0,111280.0,0.06357324]
[1752115197670,1.39759939,111290.0,111280.0,0.06357324]
[1752115197876,1.92540393,111290.0,111280.0,0.06357324]
[1752115198476,1.81782725,111290.0,111280.0,0.06357324]
[1752115198774,1.95227538,111290.0,111280.0,0.06357324]
[1752115201565,0.80039084,111290.0,111280.0,0.06201324]
[1752115201771,1.68769311,111290.0,111280.0,0.10201324]
[1752115203682,2.06769311,111290.0,111280.0,0.10201324]
[1752115204080,1.95159538,111290.0,111280.0,0.10201324]
[1752115204475,2.28159538,111290.0,111280.0,0.10201324]
[1752115204674,2.01769311,111290.0,111280.0,0.10201324]
[1752115204880,2.01769311,111290.0,111280.0,0.03618085]
[1752115205081,1.88324498,111290.0,111280.0,0.01507]
[1752115205582,1.88324498,111290.0,111280.0,0.05507]
[1752115206080,1.99084372,111290.0,111280.0,0.05507]
[1752115206580,2.18714725,111290.0,111280.0,0.04]
[1752115206788,2.18993725,111290.0,111280.0,0.04]
[1752115207983,0.1796642,111280.0,111270.0,0.03339735]
[1752115208177,0.1796642,111280.0,111270.0,0.40846735]
[1752115208178,0.91774084,111280.0,111270.0,0.40846735]
[1752115208378,0.82526332,111280.0,111270.0,0.40846735]
[1752115208570,0.90596148,111280.0,111270.0,0.40846735]
[1752115209601,0.90596148,111280.0,111270.0,0.58914775]
[1752115209791,0.90596148,111280.0,111270.0,0.85305002]
[1752115209992,0.87526148,111280.0,111270.0,1.00144775]
[1752115210187,0.87526148,111280.0,111270.0,0.64064775]
[1752115210692,0.86014148,111280.0,111270.0,0.64064775]
[1752115211100,0.84506148,111280.0,111270.0,0.64064775]
[1752115211395,0.82994148,111280.0,111270.0,0.26064775]
[1752115211601,0.82994148,111280.0,111270.0,0.57064775]
[1752115211895,1.46830148,111280.0,111270.0,0.93144775]
[1752115212100,0.58115921,111280.0,111270.0,0.93144775]
[1752115212303,1.20435921,111280.0,111270.0,1.21798002]
[1752115212893,0.94045694,111280.0,111270.0,0.95407775]
[1752115213090,1.20435921,111280.0,111270.0,1.21798002]
[1752115213494,1.20435921,111280.0,111270.0,0.90798002]
[1752115213795,1.20435921,111280.0,111270.0,1.24798002]
[1752115215593,1.20435921,111280.0,111270.0,0.88718002]
[1752115215999,1.20435921,111280.0,111270.0,1.24798002]
[1752115217396,1.20435921,111280.0,111270.0,0.88718002]
[1752115218505,1.20435921,111280.0,111270.0,0.86718002]
[1752115218899,1.20435921,111280.0,111270.0,1.24202526]
[1752115220007,1.20435921,111280.0,111270.0,1.23202526]
[1752115221609,0.94045694,111280.0,111270.0,1.23202526]
[1752115221912,1.20435921,111280.0,111270.0,1.23202526]
[1752115222205,1.20415921,111280.0,111270.0,1.23202495]
[1752115223507,1.20415921,111280.0,111270.0,1.29202495]
[1752115224109,1.20415921,111280.0,111270.0,1.02812268]
[1752115224311,1.18903921,111280.0,111270.0,0.91615495]
[1752115224608,0.92513694,111280.0,111270.0,1.29202495]
[1752115224907,1.20415921,111280.0,111270.0,1.29202495]
[1752115225115,1.18903921,111280.0,111270.0,1.29202495]
[1752115226610,1.18903921,111280.0,111270.0,0.93122495]
[1752115226910,1.18903921,111280.0,111270.0,1.29202495]
[1752115227304,0.92513694,111280.0,111270.0,1.29202495]
[1752115227504,1.18903921,111280.0,111270.0,1.29202496]
[1752115227809,1.18903921,111280.0,111270.0,1.27732496]
[1752115228402,0.92513694,111280.0,111270.0,1.27732496]
[1752115228609,1.18903921,111280.0,111270.0,1.26732496]
[1752115229206,1.18903921,111280.0,111270.0,1.00342269]
[1752115229514,1.18903921,111280.0,111270.0,1.26732496]
[1752115229704,1.21983921,111280.0,111270.0,1.26732496]
[1752115230012,1.21983921,111280.0,111270.0,1.22732496]
[1752115230697,1.21967921,111280.0,111270.0,1.22732496]
[1752115232409,1.18887921,111280.0,111270.0,1.22732496]
[1752115232597,0.30213694,111280.0,111270.0,1.22732496]
[1752115232800,0.94098694,111280.0,111270.0,1.22732496]
[1752115233006,0.92497694,111280.0,111270.0,1.22732496]
[1752115233206,0.74336934,111280.0,111270.0,1.22732496]
[1752115233400,0.92303354,111280.0,111270.0,1.22732496]
[1752115234007,0.74336934,111280.0,111270.0,1.22732496]
[1752115234204,0.92303354,111280.0,111270.0,1.22732496]
[1752115234605,0.93904354,111280.0,111270.0,1.22732496]
[1752115235007,0.93904354,111280.0,111270.0,1.26732496]
[1752115235209,1.20294581,111280.0,111270.0,1.26732496]
[1752115236307,1.20351012,111280.0,111270.0,1.26732496]
[1752115237211,0.75994365,111280.0,111270.0,1.23732496]
[1752115237416,1.02384592,111280.0,111270.0,1.23732496]
[1752115237912,1.20351012,111280.0,111270.0,1.23732496]
[1752115238502,1.20351012,111280.0,111270.0,0.90732496]
[1752115238503,1.12281196,111280.0,111270.0,0.90732496]
[1752115238700,1.12281196,111280.0,111270.0,1.23244496]
[1752115239013,1.12281196,111280.0,111270.0,1.21840002]
[1752115239212,0.85890969,111280.0,111270.0,1.23244487]
[1752115239515,1.12281196,111280.0,111270.0,1.23244487]
[1752115240407,1.12281196,111280.0,111270.0,0.6585426]
[1752115240613,1.12281196,111280.0,111270.0,1.27244487]
[1752115241016,0.85890969,111280.0,111270.0,1.27244487]
[1752115241314,1.12281196,111280.0,111270.0,1.27244487]
[1752115242810,1.12281196,111280.0,111270.0,1.0085426]
[1752115243018,1.12281196,111280.0,111270.0,1.27244487]
[1752115244018,1.12281196,111280.0,111270.0,1.28244487]
[1752115245116,1.12281196,111280.0,111270.0,1.26244487]
[1752115246515,1.12281196,111280.0,111270.0,0.9985426]
[1752115246720,0.85890969,111280.0,111270.0,1.26244487]
[1752115247018,1.12281196,111280.0,111270.0,1.26244487]
[1752115247219,0.85890969,111280.0,111270.0,1.26244487]
[1752115247518,1.12281196,111280.0,111270.0,1.26244487]
[1752115248419,1.2035148,111280.0,111270.0,1.26244487]
[1752115248619,1.2035148,111280.0,111270.0,1.29244487]
[1752115249114,1.2350148,111280.0,111270.0,1.29244487]
[1752115249320,1.2652148,111280.0,111270.0,1.29244487]
[1752115250016,1.2652148,111280.0,111270.0,1.25244487]
[1752115252923,1.26517116,111280.0,111270.0,1.25244487]
[1752115253223,1.26517116,111280.0,111270.0,0.9885426]
[1752115253423,1.26517116,111280.0,111270.0,0.9570426]
[1752115253624,1.26517116,111280.0,111270.0,1.27094487]
[1752115255127,1.26517116,111280.0,111270.0,1.26094487]
[1752115255319,1.26517116,111280.0,111270.0,1.24690002]
[1752115255622,1.26517116,111280.0,111270.0,0.99704253]
[1752115255825,1.26517116,111280.0,111270.0,1.2609448]
[1752115259824,1.26517116,111280.0,111270.0,1.26094476]
[1752115260020,1.26517116,111280.0,111270.0,1.24094476]
[1752115260326,1.00126889,111280.0,111270.0,1.24094476]
[1752115260527,1.26517116,111280.0,111270.0,1.24094476]
[1752115260721,1.26517116,111280.0,111270.0,0.97704249]
[1752115260922,1.26517116,111280.0,111270.0,1.24094476]
[1752115261125,1.00126889,111280.0,111270.0,1.24094476]
[1752115261325,1.26517116,111280.0,111270.0,1.24094476]
[1752115261714,1.26517116,111280.0,111270.0,1.24094488]
[1752115262421,1.26511832,111280.0,111270.0,1.24094488]
[1752115263821,0.82155185,111280.0,111270.0,1.24094488]
[1752115264023,1.26511832,111280.0,111270.0,1.24094488]
[1752115265219,0.82155185,111280.0,111270.0,1.24094488]
[1752115265425,1.08545412,111280.0,111270.0,1.24094488]
[1752115266031,1.08545412,111280.0,111270.0,0.97704261]
[1752115266330,1.08545412,111280.0,111270.0,1.24094488]
[1752115266331,1.26511832,111280.0,111270.0,1.24094488]
[1752115266830,1.26511832,111280.0,111270.0,1.22094488]
[1752115267235,0.82155185,111280.0,111270.0,1.22094488]
[1752115267528,1.08545412,111280.0,111270.0,1.22094488]
[1752115268731,0.82155185,111280.0,111270.0,1.22094488]
[1752115268922,0.82155185,111280.0,111270.0,1.25114488]
[1752115270030,0.82155185,111280.0,111270.0,1.27114488]
[1752115270231,0.82155185,111280.0,111270.0,1.23114488]
[1752115270733,1.08545412,111280.0,111270.0,1.23114488]
[1752115271633,1.26511832,111280.0,111270.0,1.23114488]
[1752115272436,1.08545412,111280.0,111270.0,1.23114488]
[1752115273533,1.08545412,111280.0,111270.0,1.21710002]
[1752115273723,1.08545412,111280.0,111270.0,1.2311447]
[1752115273927,1.08545412,111280.0,111270.0,1.3011447]
[1752115274125,1.26511832,111280.0,111270.0,1.3011447]
[1752115275038,1.26511832,111280.0,111270.0,1.2611447]
[1752115276636,0.46269412,111280.0,111270.0,1.2611447]
[1752115276838,0.82063185,111280.0,111270.0,1.2611447]
[1752115277032,0.82063185,111280.0,111270.0,0.99724243]
[1752115277231,1.00029595,111280.0,111270.0,1.2611447]
[1752115278539,1.00029595,111280.0,111270.0,1.3011447]
[1752115279943,1.00029595,111280.0,111270.0,0.9211447]
[1752115280140,1.00029595,111280.0,111270.0,1.3011447]
[1752115280533,0.82063185,111280.0,111270.0,1.3011447]
[1752115280746,0.82055185,111280.0,111270.0,1.3011447]
[1752115280945,0.13709185,111280.0,111270.0,1.3011447]
[1752115281147,0.75881185,111280.0,111270.0,1.3011447]
[1752115283551,0.75881185,111280.0,111270.0,1.2611447]
[1752115284951,0.75881185,111280.0,111270.0,0.9211447]
[1752115285150,0.75881185,111280.0,111270.0,1.2711447]
[1752115286841,0.78891185,111280.0,111270.0,1.2711447]
[1752115287350,0.96857595,111280.0,111270.0,1.2711447]
[1752115287752,0.96857595,111280.0,111270.0,1.00724243]
[1752115288053,1.23247822,111280.0,111270.0,1.8625447]
[1752115288252,1.26307822,111280.0,111270.0,1.8625447]
[1752115288447,1.2899729,111280.0,111270.0,1.88127542]
[1752115288653,1.18237538,111280.0,111270.0,1.87127542]
[1752115289246,0.90246311,111280.0,111270.0,1.85649542]
[1752115289553,1.18194538,111280.0,111270.0,1.85649542]
[1752115289955,1.18194538,111280.0,111270.0,1.51649542]
[1752115290151,1.18194538,111280.0,111270.0,1.82649542]
[1752115292853,1.16636538,111280.0,111270.0,1.82649542]
[1752115293649,1.16636538,111280.0,111270.0,1.83649542]
[1752115293956,0.98670128,111280.0,111270.0,1.83649542]
[1752115294142,1.18194548,111280.0,111270.0,1.83649542]
[1752115294345,1.16636548,111280.0,111270.0,1.83649542]
[1752115295042,1.16636548,111280.0,111270.0,1.89649542]
[1752115295244,0.98670128,111280.0,111270.0,1.89649542]
[1752115295552,1.00228128,111280.0,111270.0,1.89649542]
[1752115295752,1.18194548,111280.0,111270.0,1.89649542]
[1752115296155,1.00228128,111280.0,111270.0,1.89649542]
[1752115298346,0.98670128,111280.0,111270.0,1.87315542]
[1752115298549,1.06740559,111280.0,111270.0,1.51649542]
[1752115298756,1.08298559,111280.0,111270.0,1.82649542]
[1752115298956,1.06740559,111280.0,111270.0,1.82649542]
[1752115299159,0.80350332,111280.0,111270.0,1.82649542]
[1752115299357,1.08298559,111280.0,111270.0,1.82649542]
[1752115299657,1.06740559,111280.0,111270.0,1.82649542]